bitfinex-derivatives/quotes_ETHF0:USTF0_20251116
["timestamp","ask_amount","ask_price","bid_price","bid_amount"]
[1763323203718,3.4502,3091.7,3091.6,0.01344868]
[1763323204317,3.4502,3091.7,3091.6,0.24164868]
[1763323204808,3.2078,3091.7,3091.6,0.24164868]
[1763323205010,3.4502,3092.6,3092.0,0.1488]
[1763323205219,3.4502,3092.6,3092.0,3.2078]
[1763323205220,0.2424,3092.1,3092.0,3.2078]
[1763323205823,0.2424,3092.1,3092.0,3.22124868]
[1763323206021,0.24634187,3092.1,3092.0,3.22124868]
[1763323206919,0.24634187,3092.1,3092.0,0.01344868]
[1763323207311,0.00394187,3092.1,3092.0,3.59824868]
[1763323207716,0.24634187,3092.1,3092.0,3.59824868]
[1763323208024,0.00394187,3092.1,3092.0,3.59824868]
[1763323208619,3.2078,3092.8,3092.3,0.2282]
[1763323208920,3.2078,3092.8,3092.5,0.16224868]
[1763323209126,3.4502,3092.8,3092.7,0.2282]
[1763323209621,0.2424,3092.6,3092.0,3.27004868]
[1763323209925,0.2424,3092.6,3092.5,0.2282]
[1763323210122,0.2424,3092.6,3092.5,0.377]
[1763323210317,3.21077485,3092.8,3092.7,0.2282]
[1763323210318,3.45317485,3092.8,3092.7,0.2282]
[1763323210523,3.45317485,3092.8,3092.5,0.377]
[1763323210524,0.2424,3092.6,3092.5,0.377]
[1763323210719,0.2424,3092.1,3092.0,3.27402048]
[1763323210924,0.2424,3092.1,3092.0,3.2117718]
[1763323211428,0.2424,3091.8,3091.7,0.00485484]
[1763323211723,1.81415521,3091.8,3091.7,0.00485484]
[1763323212514,1.81415521,3091.8,3091.7,0.00835548]
[1763323212712,1.81415521,3091.8,3091.6,3.2078]
[1763323212915,0.2424,3091.3,3091.2,0.2282]
[1763323213121,0.2424,3090.9,3090.8,3.436]
[1763323213626,1.57175521,3091.2,3090.8,3.436]
[1763323213928,0.2424,3090.9,3090.8,3.43921421]
[1763323215519,3.21265484,3091.3,3091.2,0.2282]
[1763323215722,0.2397,3090.9,3090.8,3.21101421]
[1763323215918,4.78441005,3091.3,3090.8,3.46291421]
[1763323217621,0.2397,3090.9,3090.8,3.21101421]
[1763323218017,3.4475,3090.9,3090.8,0.00321421]
[1763323218315,3.4475,3090.9,3090.0,5.61635846]
[1763323218316,0.2375,3090.2,3090.1,1.15756183]
[1763323218916,0.2375,3090.2,3090.1,1.39016183]
[1763323219328,0.00257371,3090.2,3090.1,1.39350875]
[1763323219529,0.24007371,3090.2,3090.1,0.00334692]
[1763323220019,0.00257371,3090.2,3090.1,0.23594692]
[1763323220220,0.24007371,3090.2,3090.1,0.23594692]
[1763323222927,0.00257371,3090.2,3090.1,0.23594692]
[1763323223629,0.24007371,3090.2,3090.1,0.00334692]
[1763323224630,0.00257371,3090.2,3090.1,0.23594692]
[1763323225824,0.00257371,3090.2,3090.1,3.44374692]
[1763323226023,3.4453,3091.0,3090.9,0.2326]
[1763323226228,0.2375,3090.6,3090.5,0.3693]
[1763323227036,0.00336061,3090.6,3090.5,0.3693]
[1763323228435,0.2375,3090.2,3090.1,3.44374692]
[1763323228641,1.80925521,3090.2,3090.1,3.21114692]
[1763323228826,0.2375,3089.9,3089.8,0.00485484]
[1763323229028,1.80925521,3089.9,3089.8,0.00485484]
[1763323229227,0.2375,3089.2,3089.1,3.2078]
[1763323229732,0.2375,3089.2,3089.1,3.444239]
[1763323229934,3.2078,3089.5,3089.1,3.444239]
[1763323230639,0.2375,3089.2,3089.1,3.444239]
[1763323230938,0.2375,3089.2,3089.1,0.003839]
[1763323231837,0.2375,3089.2,3089.1,0.236439]
[1763323233437,0.2375,3089.2,3089.1,0.003839]
[1763323234343,0.2375,3089.2,3089.1,0.02269205]
[1763323234641,0.2375,3088.8,3088.7,0.0323766]
[1763323234840,3.2078,3088.8,3088.7,0.2649766]
[1763323235140,3.2078,3089.2,3089.1,0.2326]
[1763323235538,3.2078,3089.2,3089.1,0.23635897]
[1763323235942,3.4453,3089.2,3089.1,0.00375897]
[1763323236842,3.4453,3089.2,3089.1,0.23635897]
[1763323237140,3.2078,3089.2,3089.1,0.23635897]
[1763323238339,3.4453,3089.2,3089.1,0.00375897]
[1763323239241,0.2375,3088.8,3088.7,0.0323766]
[1763323239444,0.2375,3088.3,3088.0,0.1367]
[1763323239835,0.2375,3088.3,3087.5,1.29426183]
[1763323240045,0.2375,3088.3,3087.7,0.25191846]
[1763323240243,0.24065884,3088.3,3088.2,3.21127235]
[1763323240437,0.24065884,3088.3,3088.2,0.00347235]
[1763323241742,0.2375,3087.6,3087.5,0.3693]
[1763323241946,0.00315884,3088.3,3087.8,0.2326]
[1763323241947,0.00485484,3087.9,3087.8,0.2326]
[1763323242144,0.2375,3087.6,3087.5,0.1367]
[1763323242342,0.00485484,3087.9,3087.5,0.3693]
[1763323242543,0.00485484,3087.9,3087.8,0.2326]
[1763323242739,0.00485484,3087.9,3087.8,0.23529184]
[1763323243345,3.2078,3087.3,3086.5,0.1367]
[1763323243544,3.2078,3086.6,3086.5,0.3693]
[1763323243742,3.2078,3087.0,3086.9,0.2326]
[1763323243947,3.2078,3087.6,3087.5,0.1367]
[1763323244147,3.2078,3087.6,3087.5,0.13918571]
[1763323245548,3.2078,3087.6,3087.5,0.00248571]
[1763323245753,3.2078,3087.6,3087.0,0.1367]
[1763323246044,3.2078,3087.6,3087.5,0.3693]
[1763323246250,0.00485484,3087.9,3087.8,0.2326]
[1763323246746,0.00315884,3088.3,3087.8,0.2326]
[1763323246747,0.00315884,3088.3,3088.2,0.2326]
[1763323247146,3.2078,3088.9,3088.8,0.2326]
[1763323247342,3.2078,3089.3,3089.2,0.2326]
[1763323248243,3.2117759,3089.3,3089.2,0.2326]
[1763323250350,3.2117759,3089.3,3089.2,0.27378585]
[1763323251247,3.2117759,3089.3,3089.2,0.27484838]
[1763323252651,3.2117759,3089.3,3089.2,0.04224838]
[1763323253154,3.2117759,3089.3,3089.2,0.27644838]
[1763323254252,0.0039759,3089.3,3089.2,0.27644838]
[1763323254453,0.0039759,3089.3,3089.0,0.2051]
[1763323254454,3.2117759,3089.3,3089.0,0.2051]
[1763323254643,3.2117759,3089.3,3089.2,0.2342]
[1763323256258,3.2078,3090.1,3090.0,0.4393]
[1763323257249,3.2107542,3090.1,3090.0,0.44268221]
[1763323258357,3.2107542,3090.1,3090.0,0.20848221]
[1763323259051,3.2107542,3090.1,3090.0,0.44268221]
[1763323259862,0.00485484,3090.4,3090.3,0.2342]
[1763323260954,0.00835554,3090.4,3090.0,0.20848221]
[1763323263362,0.00835554,3090.4,3090.3,0.2342]
[1763323264060,0.00835554,3090.4,3090.0,0.20848221]
[1763323264263,0.00835554,3090.4,3090.3,0.2342]
[1763323265060,0.00835554,3090.4,3090.3,2.2752]
[1763323265265,12.62370718,3092.7,3090.3,2.2752]
[1763323265266,3.2078,3091.7,3091.2,0.2342]
[1763323265465,3.2078,3092.1,3092.0,0.2051]
[1763323265767,3.2078,3092.1,3092.0,0.4393]
[1763323266262,2.80301714,3093.3,3092.5,0.2051]
[1763323266263,3.2078,3092.7,3092.5,0.2051]
[1763323266464,3.21107002,3092.7,3092.5,0.20893385]
[1763323267360,3.21107002,3092.7,3092.6,0.2342]
[1763323268666,3.2078,3093.3,3093.2,0.2342]
[1763323268863,3.2424,3093.7,3093.5,0.2051]
[1763323269661,3.24540794,3093.7,3093.5,0.2051]
[1763323273164,3.24540794,3093.7,3093.3,0.00485484]
[1763323273371,6.0,3093.6,3092.5,0.00383385]
[1763323273575,3.2078,3092.6,3092.5,0.00383385]
[1763323273760,3.2078,3092.6,3092.5,3.385e-05]
[1763323273966,3.2078,3092.6,3091.4,3.2078]
[1763323273967,9.2078,3092.6,3091.4,3.2078]
[1763323274166,3.2078,3092.2,3092.0,0.2051]
[1763323274965,3.2078,3092.2,3092.0,0.20930262]
[1763323275161,3.2078,3092.2,3092.1,0.2342]
[1763323276773,3.24540794,3093.7,3092.8,0.3405]
[1763323276968,0.3522,3092.9,3092.5,0.2219]
[1763323277367,0.3522,3092.9,3092.4,3.2078]
[1763323277567,0.1585,3093.5,3092.5,0.2219]
[1763323278271,0.3408,3092.5,3092.4,3.2078]
[1763323278672,0.4993,3092.5,3092.4,3.2078]
[1763323278861,0.3408,3092.5,3092.4,3.2078]
[1763323279264,0.4174,3092.5,3092.4,3.2078]
[1763323279466,0.3408,3092.1,3092.0,3.21200262]
[1763323280366,0.3408,3092.1,3092.0,0.00420262]
[1763323282674,3.2078,3092.7,3092.0,3.46350262]
[1763323284570,3.2078,3092.7,3092.0,3.21200262]
[1763323284778,3.2078,3092.7,3092.0,3.46350262]
[1763323285172,3.2078,3092.7,3092.0,3.21200262]
[1763323285476,3.2078,3092.7,3092.0,3.80110262]
[1763323285873,0.3408,3092.1,3092.0,3.21200262]
[1763323287373,3.2078,3092.7,3092.0,3.80110262]
[1763323287578,3.2078,3092.7,3092.6,0.3376]
[1763323288371,3.5486,3092.7,3092.5,0.2515]
[1763323289277,0.3408,3092.6,3092.0,3.46350262]
[1763323289877,0.3408,3092.6,3092.5,0.3376]
[1763323290084,3.2078,3092.7,3092.5,0.5891]
[1763323290282,0.3408,3092.7,3092.6,3.2078]
[1763323291470,0.3408,3092.7,3092.5,0.2515]
[1763323291678,3.2078,3093.1,3092.6,3.5454]
[1763323291885,3.3663,3093.5,3093.0,0.3376]
[1763323292081,3.3663,3093.5,3093.0,0.5891]
[1763323292784,0.3408,3093.1,3093.0,0.5891]
[1763323293693,3.2078,3093.5,3093.0,3.7969]
[1763323293880,3.3663,3093.5,3093.0,3.7969]
[1763323294484,3.2078,3093.5,3093.0,3.7969]
[1763323296485,0.03760794,3093.7,3093.6,0.3376]
[1763323297189,3.2078,3095.0,3093.8,0.3376]
[1763323297395,0.3408,3094.7,3094.6,3.2078]
[1763323297585,3.2078,3095.0,3094.1,3.2078]
[1763323297586,0.3408,3094.2,3094.1,3.2078]
[1763323298088,0.34437908,3094.2,3094.1,3.21146107]
[1763323298288,9.55217908,3094.2,3094.1,0.00366107]
[1763323298499,0.3408,3093.4,3093.3,3.2078]
[1763323299391,0.3408,3093.4,3093.3,3.21021816]
[1763323299697,0.00357908,3094.2,3093.3,3.54781816]
[1763323299896,0.00357908,3094.2,3093.7,3.2078]
[1763323300682,0.00357908,3094.2,3094.1,3.5454]
[1763323300981,0.34437908,3094.2,3094.1,3.2078]
[1763323302292,0.34437908,3094.2,3093.7,3.2078]
[1763323302496,0.3408,3093.8,3093.7,3.2078]
[1763323302991,0.00357908,3094.2,3093.7,3.5454]
[1763323303194,0.00357908,3094.2,3094.1,3.5454]
[1763323306490,0.34437908,3094.2,3094.1,3.2078]
[1763323309194,0.3408,3093.8,3093.7,3.2078]
[1763323309698,0.00357908,3094.2,3094.1,0.3942]
[1763323309995,0.41577908,3094.2,3094.0,0.2175]
[1763323310386,0.4122,3094.1,3094.0,0.2175]
[1763323310783,0.4122,3094.1,3093.7,3.2078]
[1763323311395,0.4122,3093.8,3093.7,3.2078]
[1763323311596,0.4122,3093.4,3093.3,0.00241816]
[1763323312005,5.97307603,3093.4,3093.3,0.00241816]
[1763323312294,5.97307603,3093.4,3092.5,0.2515]
[1763323312295,0.4122,3093.1,3092.5,0.2515]
[1763323313095,3.2078,3093.4,3093.0,0.6117]
[1763323314399,3.2078,3093.8,3093.3,0.3942]
[1763323314903,0.175,3094.0,3093.3,0.3942]
[1763323315700,5.56445511,3094.2,3093.3,0.3942]
[1763323316298,2.35665511,3094.2,3093.6,3.2078]
[1763323316796,0.00357908,3094.2,3093.6,3.2078]
[1763323318493,0.00357908,3094.2,3094.1,0.3942]
[1763323318689,0.4122,3094.1,3094.0,0.3942]
[1763323318899,0.41577908,3094.2,3094.0,0.2175]
[1763323319103,0.00357908,3094.2,3094.1,0.3942]
[1763323319295,0.4122,3094.1,3094.0,3.4253]
[1763323319601,0.4122,3094.1,3094.0,0.2175]
[1763323319803,0.4122,3094.1,3093.6,3.2078]
[1763323320195,0.00357908,3094.2,3093.6,3.2078]
[1763323320196,0.4122,3093.7,3093.6,3.2078]
[1763323320593,3.21137908,3094.2,3093.6,3.602]
[1763323321203,0.4122,3093.7,3093.6,3.2078]
[1763323321403,0.1585,3093.5,3092.7,4.36479034]
[1763323321605,3.2078,3093.4,3092.7,3.2078]
[1763323322600,0.4122,3093.8,3093.7,0.3942]
[1763323323108,16.74537908,3094.2,3093.7,0.3942]
[1763323323498,0.4122,3093.6,3093.5,3.2078]
[1763323323695,5.56445511,3094.2,3093.5,3.8195]
[1763323324505,12.285,3094.1,3093.5,3.8195]
[1763323325399,12.285,3094.1,3093.0,1.37449034]
[1763323325400,0.4122,3093.6,3093.1,3.2078]
[1763323325600,0.4122,3093.2,3093.1,3.2078]
[1763323325796,0.1585,3094.0,3093.1,3.602]
[1763323326603,3.2078,3093.8,3093.1,3.602]
[1763323326999,0.4122,3093.2,3093.1,3.602]
[1763323327198,3.2078,3093.8,3093.1,3.602]
[1763323329408,0.4122,3093.2,3093.1,3.2078]
[1763323329605,0.4122,3092.9,3092.5,0.2589448]
[1763323329808,2.76527603,3092.6,3092.5,0.0074448]
[1763323330205,0.1418,3092.5,3091.9,3.2078]
[1763323330396,0.4122,3092.0,3091.9,3.2078]
[1763323330601,0.1418,3092.5,3091.9,3.602]
[1763323330798,0.1418,3092.5,3092.0,0.2175]
[1763323331007,0.4122,3092.1,3091.9,3.2078]
[1763323331308,0.4122,3092.0,3091.9,3.21077044]
[1763323331505,0.00255866,3092.1,3091.9,3.60497044]
[1763323332608,0.00255866,3092.1,3092.0,0.6117]
[1763323332808,3.2078,3093.1,3092.5,0.6117]
[1763323333111,0.4122,3092.5,3092.4,3.2078]
[1763323333902,0.41500979,3092.5,3092.4,3.2078]
[1763323334109,0.41500979,3092.5,3092.0,3.4253]
[1763323335902,0.00280979,3092.5,3092.4,0.3942]
[1763323336104,0.00280979,3092.5,3092.4,3.602]
[1763323338313,0.32010979,3092.5,3092.4,3.2078]
[1763323338812,0.32010979,3092.5,3092.0,3.4253]
[1763323339205,0.00280979,3092.5,3092.4,0.3475]
[1763323339411,0.00280979,3092.5,3092.4,3.5553]
[1763323339810,0.34320979,3092.5,3092.4,0.3475]
[1763323340708,0.00280979,3092.5,3092.4,0.3475]
[1763323341606,0.34320979,3092.5,3092.3,3.2078]
[1763323342111,0.3404,3092.4,3092.3,3.2078]
[1763323342804,0.3404,3092.4,3092.0,0.2175]
[1763323343413,0.3404,3092.1,3091.9,3.21077044]
[1763323344004,0.3404,3092.0,3091.9,0.00297044]
[1763323346305,16.1214,3092.0,3091.9,0.00297044]
[1763323347314,3.2078,3092.3,3092.2,0.3198]
[1763323347914,3.5482,3092.3,3092.2,0.3198]
[1763323348415,15.777,3092.4,3092.2,0.3198]
[1763323348614,0.00280979,3092.5,3092.4,0.3198]
[1763323350825,0.34320979,3092.5,3092.4,0.3198]
[1763323351025,0.00280979,3092.5,3092.4,0.3198]
[1763323358230,0.00280979,3092.5,3092.4,3.5276]
[1763323361822,0.34320979,3092.5,3092.4,3.5276]
[1763323362027,0.34320979,3092.5,3092.4,3.2078]
[1763323362428,0.00280979,3092.5,3092.4,3.5276]
[1763323367232,0.00280979,3092.5,3092.4,0.3198]
[1763323369636,0.00280979,3092.5,3092.0,0.2075]
[1763323369637,6.15800979,3092.5,3092.0,0.2075]
[1763323369935,0.3311,3092.1,3092.0,0.2075]
[1763323370136,16.1021,3092.1,3092.0,0.2075]
[1763323370527,16.1021,3092.1,3092.0,0.5274]
[1763323372638,15.771,3092.1,3092.0,0.5274]
[1763323372833,16.1021,3092.1,3092.0,0.5274]
[1763323374736,15.771,3092.1,3092.0,0.5274]
[1763323375736,0.00280979,3092.5,3092.0,0.5274]
[1763323375937,0.00280979,3092.5,3092.4,0.3199]
[1763323380142,0.00484684,3092.9,3092.7,0.3199]
[1763323380336,0.00484684,3092.9,3092.8,0.3199]
[1763323380535,15.23380331,3093.8,3092.6,4.36479034]
[1763323380536,0.85960933,3093.6,3093.5,0.4949]
[1763323380738,15.771,3093.6,3093.5,0.4949]
[1763323381246,16.10495653,3093.6,3093.5,0.4949]
[1763323381540,0.00285653,3093.6,3093.5,0.4949]
[1763323381744,9.33e-06,3094.0,3093.9,0.3199]
[1763323381935,3.2078,3094.7,3094.6,0.3199]
[1763323382133,3.5389,3094.7,3093.9,3.2078]
[1763323382337,3.5389,3094.7,3093.9,4.36868672]
[1763323382736,0.00484684,3094.6,3093.9,4.37258438]
[1763323383150,0.1783,3094.5,3093.9,3.21169766]
[1763323383337,0.5094,3094.5,3094.4,0.3199]
[1763323383537,16.2794,3094.5,3093.9,3.21169766]
[1763323385950,0.5094,3094.5,3094.4,0.3199]
[1763323386145,0.00484684,3094.6,3094.5,0.3199]
[1763323386345,0.00484684,3094.6,3094.5,0.4078]
[1763323387450,0.00300261,3094.7,3094.6,0.3199]
[1763323388548,0.00300261,3094.7,3094.3,3.5277]
[1763323388549,0.3311,3094.4,3094.3,3.5277]
[1763323388943,0.3311,3094.4,3094.3,3.2078]
[1763323390353,0.1783,3094.5,3094.3,3.5277]
[1763323390651,0.1783,3094.5,3094.4,0.3199]
[1763323391051,0.5094,3094.5,3093.9,3.21169766]
[1763323391845,13.48,3094.6,3094.5,0.3199]
[1763323392040,0.00300261,3094.7,3094.6,0.3199]
[1763323396748,0.00484684,3095.0,3094.9,0.2871]
[1763323396953,0.00484684,3095.0,3094.9,3.4949]
[1763323397554,0.00753607,3095.0,3094.9,3.4949]
[1763323398060,3.607e-05,3095.0,3094.9,3.4949]
[1763323398766,3.607e-05,3095.0,3094.9,9.4949]
[1763323399153,3.3861,3096.5,3095.2,0.2986]
[1763323399352,3.3861,3096.5,3095.9,3.2078]
[1763323399750,3.3861,3096.5,3096.4,0.2986]
[1763323399956,3.2078,3096.5,3096.4,0.2986]
[1763323400157,3.21138344,3096.5,3096.4,0.30150308]
[1763323400355,0.00358344,3096.5,3096.4,0.30150308]
[1763323401159,0.00358344,3096.5,3096.4,0.5550599]
[1763323401552,0.00358344,3096.5,3096.4,0.30150308]
[1763323401961,0.00358344,3096.5,3096.4,0.55565305]
[1763323402156,0.00358344,3096.5,3096.4,0.30150308]
[1763323404055,0.47578344,3096.5,3096.4,0.00290308]
[1763323404362,0.47578344,3096.5,3096.1,0.00484684]
[1763323404363,0.2963,3096.2,3096.1,0.00484684]
[1763323405262,0.2963,3096.2,3096.1,0.0084015]
[1763323406059,6.2963,3096.2,3096.1,0.0084015]
[1763323406861,0.2963,3096.2,3096.1,0.0084015]
[1763323407453,0.4722,3095.5,3095.4,3.2078]
[1763323408556,0.4722,3095.5,3095.4,3.21117865]
[1763323409254,0.1759,3095.5,3095.4,3.50977865]
[1763323409656,0.1759,3096.0,3095.4,3.50977865]
[1763323409966,0.4722,3095.5,3095.4,3.21117865]
[1763323410165,0.1759,3096.0,3095.4,3.50977865]
[1763323411063,0.1759,3096.0,3095.4,3.21117865]
[1763323411367,3.38728344,3096.5,3096.0,0.2986]
[1763323411866,0.1759,3096.0,3095.5,0.1716]
[1763323412364,0.1759,3096.0,3095.4,3.21117865]
[1763323412565,0.1759,3096.0,3095.9,0.2986]
[1763323412864,0.4722,3096.0,3095.9,0.2986]
[1763323413063,7.46428344,3096.5,3095.9,0.2986]
[1763323413270,3.38728344,3096.5,3095.9,0.2986]
[1763323414464,0.4722,3096.0,3095.4,3.21117865]
[1763323414769,0.4722,3095.5,3095.4,0.00337865]
[1763323416869,0.1759,3096.0,3095.4,0.30197865]
[1763323416870,15.751,3095.8,3095.4,0.30197865]
[1763323417169,0.4722,3095.5,3095.4,0.30197865]
[1763323417667,0.1759,3095.5,3095.4,0.30197865]
[1763323417867,0.4722,3095.5,3095.4,0.00337865]
[1763323419062,6.4722,3095.5,3095.4,0.00337865]
[1763323419265,0.2963,3094.7,3094.5,3.2078]
[1763323419463,0.2963,3094.6,3094.5,3.2078]
[1763323420275,0.2963,3094.6,3094.5,3.21177473]
[1763323420565,0.00484684,3094.9,3094.5,3.51037473]
[1763323420762,15.75684684,3094.9,3094.5,3.51037473]
[1763323421363,0.2963,3094.6,3094.5,3.51037473]
[1763323421871,15.752,3094.8,3094.7,0.2986]
[1763323422365,0.00484684,3094.9,3094.5,3.51037473]
[1763323422670,0.00484684,3094.9,3094.5,0.30257473]
[1763323423068,0.00484684,3094.9,3094.8,0.2986]
[1763323424965,0.30114684,3094.9,3094.5,0.00397473]
[1763323425875,0.00484684,3094.9,3094.8,0.2986]
[1763323431679,3.2078,3095.7,3094.8,0.2986]
[1763323431680,3.2078,3095.7,3095.6,0.2874]
[1763323433277,3.481,3095.7,3095.6,0.2874]
[1763323433478,0.2732,3095.4,3095.3,3.2078]
[1763323434275,0.2732,3095.4,3095.3,3.4952]
[1763323435680,3.2078,3095.7,3095.6,0.2874]
[1763323435878,3.481,3095.7,3095.6,0.2874]
[1763323436480,3.2078,3095.7,3095.6,0.2874]
[1763323436775,0.45394684,3096.0,3095.9,0.2874]
[1763323436968,0.18074684,3096.0,3095.9,0.2874]
[1763323437672,0.45394684,3096.0,3095.9,0.2874]
[1763323438081,0.00484684,3096.0,3095.9,0.2874]
[1763323441884,0.00358344,3096.5,3096.4,0.2874]
[1763323442783,3.2078,3097.5,3097.4,0.2874]
[1763323442978,3.2078,3098.4,3097.9,0.2874]
[1763323443175,0.2732,3097.9,3097.8,0.00484684]
[1763323443794,0.27717318,3097.9,3097.8,0.00720919]
[1763323444077,0.00397318,3097.9,3097.8,0.29460919]
[1763323444283,0.27717318,3097.9,3097.8,0.00720919]
[1763323444675,0.2732,3097.1,3097.0,3.4952]
[1763323444876,0.1557,3097.5,3097.0,3.4952]
[1763323445078,0.2732,3097.1,3097.0,3.2078]
[1763323445286,0.1557,3097.5,3097.0,3.4952]
[1763323445675,0.1557,3097.5,3097.0,3.49841024]
[1763323448578,15.745,3097.8,3097.4,0.2874]
[1763323448786,0.00397318,3097.9,3097.4,0.2874]
[1763323449082,0.00397318,3097.9,3097.8,0.2874]
[1763323449589,0.27717318,3097.9,3097.0,3.27461024]
[1763323450583,0.27717318,3097.9,3097.6,3.2078]
[1763323453684,0.1557,3097.5,3097.2,3.2078]
[1763323453879,0.2732,3097.3,3097.2,3.2078]
[1763323454082,0.00397318,3097.9,3097.8,0.2874]
[1763323454289,6.595,3098.4,3098.3,0.2874]
[1763323454588,12.6506006,3099.5,3098.3,0.2874]
[1763323454589,0.8619006,3100.2,3098.3,5.55809407]
[1763323454784,0.4289,3100.0,3099.0,3.2078]
[1763323454987,0.2732,3099.1,3099.0,3.2078]
[1763323455181,16.0452,3099.1,3099.0,3.2078]
[1763323455382,16.04896184,3099.1,3099.0,3.2078]
[1763323456394,0.00376184,3099.1,3099.0,3.2078]
[1763323457395,0.29256184,3099.1,3099.0,3.2078]
[1763323457888,0.1749,3099.0,3098.7,0.00484684]
[1763323458095,0.1749,3099.0,3098.9,3.2078]
[1763323458810,0.00376184,3099.1,3098.9,5.55809407]
[1763323459195,0.00376184,3099.1,3098.9,3.2078]
[1763323461492,0.1835,3099.0,3098.9,3.2078]
[1763323463195,0.473,3099.0,3098.9,3.2078]
[1763323464992,0.2895,3098.6,3098.5,2.84892438]
[1763323465897,0.1835,3099.0,3098.5,2.84892438]
[1763323466100,0.1835,3099.0,3098.9,3.2078]
[1763323466304,6.591,3099.0,3098.9,3.2078]
[1763323466499,15.02,3099.0,3098.9,3.2078]
[1763323466698,16.246,3099.0,3098.9,3.2078]
[1763323467004,15.9565,3099.0,3098.9,3.2078]
[1763323467200,0.1835,3099.0,3098.9,3.2078]
[1763323467504,0.00376184,3099.1,3098.9,3.2078]
[1763323467998,0.00484684,3099.4,3099.0,2.35029407]
[1763323468203,3.2078,3100.2,3099.3,3.2078]
[1763323468403,0.1557,3100.5,3099.0,2.35029407]
[1763323468404,0.1557,3100.5,3099.9,3.2078]
[1763323468807,15.774,3100.3,3099.9,3.2078]
[1763323469006,0.15824352,3100.0,3099.9,3.2119173]
[1763323469806,0.1835,3101.0,3100.0,6.0]
[1763323470008,0.1835,3101.5,3100.9,3.2078]
[1763323470205,0.1835,3101.5,3101.4,3.2078]
[1763323470405,0.473,3101.5,3101.4,3.2078]
[1763323470911,0.18715083,3101.5,3101.4,3.2078]
[1763323471406,0.1835,3103.0,3101.4,9.02107766]
[1763323471604,0.473,3102.5,3102.4,3.2078]
[1763323472018,0.1835,3102.5,3102.4,3.2078]
[1763323472206,7.148,3102.9,3102.4,3.2078]
[1763323472514,0.1835,3104.4,3102.8,5.55809407]
[1763323472807,0.1835,3105.0,3104.1,3.2078]
[1763323473016,0.1835,3105.0,3104.6,3.2078]
[1763323473413,0.18756058,3105.0,3104.6,3.21083315]
[1763323473918,0.18756058,3105.0,3104.6,3.2078]
[1763323474107,3.2078,3105.8,3104.6,5.55809407]
[1763323474308,3.3913,3106.2,3105.4,3.2078]
[1763323475006,0.10044316,3105.5,3105.2,0.00483076]
[1763323475212,0.2895,3105.1,3105.0,2.7763503]
[1763323475412,0.1835,3105.2,3105.0,2.7763503]
[1763323475613,0.10396053,3105.5,3105.0,2.7763503]
[1763323475913,0.00351737,3105.5,3105.4,3.10735684]
[1763323476312,0.00351737,3105.5,3105.4,3.11153167]
[1763323476904,0.00351737,3105.5,3105.4,0.00417483]
[1763323477107,0.29301737,3105.5,3105.4,0.00417483]
[1763323478609,0.2895,3105.1,3105.0,3.2078]
[1763323478810,0.2895,3105.1,3105.0,2.07538908]
[1763323479012,0.1835,3105.2,3105.0,2.07538908]
[1763323479519,0.2895,3105.1,3105.0,2.07538908]
[1763323479817,0.2895,3105.1,3105.0,2.07772574]
[1763323480014,6.2895,3105.1,3105.0,3.666e-05]
[1763323481106,0.2895,3105.1,3105.0,3.666e-05]
[1763323481309,16.1555,3105.1,3105.0,3.666e-05]
[1763323481505,22.1555,3105.1,3105.0,3.666e-05]
[1763323483717,16.1555,3105.1,3105.0,3.666e-05]
[1763323483917,3.07407139,3105.4,3105.0,3.666e-05]
[1763323484118,0.00351737,3105.5,3105.0,3.666e-05]
[1763323486724,0.00351737,3105.5,3105.3,3.2078]
[1763323488024,0.00480402,3105.8,3105.3,3.2078]
[1763323488214,0.1835,3106.2,3105.7,3.2078]
[1763323488615,0.1835,3106.2,3105.2,2.35029407]
[1763323488616,0.1835,3106.2,3106.1,3.2078]
[1763323489016,0.18579014,3106.2,3106.1,3.2078]
[1763323489218,0.00229014,3106.2,3106.1,3.2078]
[1763323489822,0.21089014,3106.2,3106.1,3.2078]
[1763323490023,0.00229014,3106.2,3106.1,3.2078]
[1763323491832,0.3189,3105.8,3105.7,3.2078]
[1763323492623,0.3189,3105.3,3105.2,3.2078]
[1763323492829,0.2086,3105.6,3105.0,3.666e-05]
[1763323493426,3.2078,3105.3,3105.0,3.666e-05]
[1763323493930,9.2078,3105.3,3105.0,3.666e-05]
[1763323494132,0.5275,3104.4,3104.3,3.2078]
[1763323495023,0.5275,3104.4,3104.3,3.21037725]
[1763323495624,0.2086,3104.4,3104.3,3.21037725]
[1763323495825,0.5275,3104.4,3104.3,3.21037725]
[1763323496432,0.2086,3104.4,3104.3,3.21037725]
[1763323496834,3.2078,3105.5,3104.3,11.9834352]
[1763323497136,3.897,3105.9,3105.2,3.2078]
[1763323498033,0.3189,3105.3,3105.2,3.2078]
[1763323498234,0.00483076,3105.7,3105.2,3.2078]
[1763323501438,0.2086,3106.8,3105.5,3.93054076]
[1763323501626,0.2086,3106.8,3105.4,1.73622421]
[1763323501627,0.2086,3106.2,3106.1,3.2078]
[1763323502039,0.2086,3106.8,3106.1,3.2078]
[1763323502338,0.2086,3106.2,3106.0,0.85948196]
[1763323502539,0.21277873,3106.2,3106.0,0.00483076]
[1763323503040,0.3189,3106.1,3106.0,0.00483076]
[1763323503233,0.21277873,3106.2,3106.0,0.00483076]
[1763323503433,0.00417873,3106.2,3106.1,3.2078]
[1763323504446,0.00417873,3106.2,3106.1,4.35377594]
[1763323504634,0.2086,3106.8,3106.1,9.2078]
[1763323504837,0.2086,3107.4,3106.7,0.86147396]
[1763323505039,0.2086,3107.4,3107.0,3.2078]
[1763323505435,0.2086,3107.4,3107.0,4.06927396]
[1763323505641,0.0039206,3107.4,3107.0,4.07234574]
[1763323505842,0.0039206,3107.4,3107.1,0.86147396]
[1763323506340,0.0039206,3107.4,3107.0,4.07234574]
[1763323506635,0.2086,3107.3,3107.0,3.21087178]
[1763323506840,0.3189,3107.1,3107.0,3.21087178]
[1763323507142,0.3189,3107.1,3107.0,0.00307178]
[1763323507641,0.2086,3107.3,3107.0,0.00307178]